bitfinex/quotes_SOLUSD_20241125
["timestamp","ask_amount","ask_price","bid_price","bid_amount"]
[1732560999814,19.4874,240.11,240.03,11.30763393]
[1732560999991,19.4874,240.11,240.04,35.08451793]
[1732561000194,19.4874,240.11,240.04,23.776884]
[1732561000392,19.4874,240.11,240.04,35.08451793]
[1732561000797,8.2516,240.14,240.05,11.30763393]
[1732561001315,8.2516,240.14,240.04,35.08451793]
[1732561002394,8.2516,240.14,240.04,23.776884]
[1732561003307,8.2516,240.14,240.03,23.776884]
[1732561003815,8.2516,240.14,240.03,35.08451793]
[1732561006916,8.2516,240.14,240.03,23.776884]
[1732561007217,8.2516,240.14,239.97,23.776884]
[1732561007724,8.2516,240.14,239.98,11.30763393]
[1732561008017,8.2516,240.14,240.03,23.776884]
[1732561009213,8.2516,240.14,240.04,11.30763393]
[1732561009595,8.2516,240.14,240.02,23.776884]
[1732561009814,8.2516,240.14,240.02,35.08451793]
[1732561011125,8.2516,240.14,240.03,11.30763393]
[1732561011324,8.2516,240.14,240.02,35.08451793]
[1732561012030,8.2516,240.14,240.04,23.776884]
[1732561012209,8.2516,240.14,240.02,35.08451793]
[1732561013097,8.2516,240.14,240.05,20.0]
[1732561013298,8.2516,240.14,240.06,20.0]
[1732561013601,8.2516,240.14,240.05,20.0]
[1732561015404,8.2516,240.14,240.06,20.0]
[1732561015798,8.2516,240.14,240.05,31.30763393]
[1732561016013,8.2516,240.14,240.05,20.0]
[1732561016518,8.2516,240.14,240.06,20.0]
[1732561016998,20.2434,240.17,240.07,35.21000793]
[1732561017204,20.353202,240.22,240.11,11.30763393]
[1732561017403,20.353202,240.22,240.12,23.776884]
[1732561017818,20.353202,240.22,240.1,23.776884]
[1732561018119,20.353202,240.22,240.11,11.30763393]
[1732561018417,20.353202,240.22,240.13,23.776884]
[1732561018626,20.353202,240.22,240.14,11.30763393]
[1732561019015,20.353202,240.22,240.15,23.776884]
[1732561019910,0.475002,240.22,240.15,23.776884]
[1732561020733,0.475002,240.22,240.08,11.30763393]
[1732561021321,0.475002,240.22,240.11,35.08451793]
[1732561021524,0.475002,240.22,240.12,11.30763393]
[1732561021761,0.475002,240.22,240.13,11.30763393]
[1732561022022,0.475002,240.22,240.11,23.776884]
[1732561022225,0.475002,240.22,240.11,35.08451793]
[1732561022922,0.475002,240.22,240.11,23.776884]
[1732561023926,0.475002,240.22,240.11,35.08451793]
[1732561024309,0.475002,240.22,240.13,11.30763393]
[1732561024612,0.475002,240.22,240.15,23.776884]
[1732561028009,0.475002,240.22,240.14,23.776884]
[1732561029203,0.475002,240.22,240.1,23.776884]
[1732561029409,0.475002,240.22,240.09,23.776884]
[1732561030141,0.475002,240.22,240.03,26.0222]
[1732561030142,20.0,240.18,240.03,18.4922]
[1732561030307,20.0,240.18,239.98,30.84153393]
[1732561030508,30.0,240.15,239.98,30.84153393]
[1732561031113,30.0,240.15,240.0,11.30763393]
[1732561031514,30.0,240.15,239.99,35.08451793]
[1732561032139,30.0,240.15,240.0,23.776884]
[1732561032807,20.0,240.12,239.96,11.30763393]
[1732561033013,28.1709,240.11,239.94,11.30763393]
[1732561033217,28.1709,240.11,239.95,11.30763393]
[1732561033716,19.8782,240.1,239.91,11.30763393]
[1732561034026,20.0,240.07,239.92,11.30763393]
[1732561035033,20.0,240.07,239.93,11.30763393]
[1732561035741,20.0,240.07,239.94,23.776884]
[1732561036031,30.0,240.06,239.94,23.776884]
[1732561036541,43.776884,240.12,240.11,54.59549443]
[1732561036766,23.776884,240.11,239.92,23.776884]
[1732561037241,23.776884,240.11,239.9,23.776884]
[1732561037530,5.08039468,240.1,239.9,11.30763393]
[1732561037738,23.776884,240.11,239.91,23.776884]
[1732561038313,23.776884,240.11,239.9,23.776884]
[1732561038515,20.0,240.06,239.9,23.776884]
[1732561038736,20.0,240.06,239.86,20.2941]
[1732561038934,20.0,240.06,239.86,31.60173393]
[1732561039515,20.0,240.02,239.86,31.60173393]
[1732561040619,20.0,240.02,239.89,11.30763393]
[1732561040823,33.3551,240.05,239.93,11.30763393]
[1732561041028,33.3551,240.05,239.88,0.12549]
[1732561041029,33.3551,240.05,239.92,11.30763393]
[1732561041423,33.3551,240.05,239.91,11.30763393]
[1732561041621,33.3551,240.05,239.92,23.776884]
[1732561042122,33.3551,240.05,239.93,11.30763393]
[1732561043237,3.3551,240.05,239.93,11.30763393]
[1732561043728,3.3551,240.05,239.92,23.776884]
[1732561043922,3.3551,240.05,239.86,20.2941]
[1732561044128,20.0,240.03,239.87,23.776884]
[1732561044431,20.0,240.03,239.89,11.30763393]
[1732561044627,3.3551,240.05,239.89,11.30763393]
[1732561047123,3.3551,240.05,239.87,35.08451793]
[1732561047838,3.3551,240.05,239.87,23.776884]
[1732561048022,3.3551,240.05,239.88,20.0]
[1732561048221,3.3551,240.05,239.89,43.776884]
[1732561048443,3.3551,240.05,239.89,20.0]
[1732561049038,20.0,240.01,239.85,23.776884]
[1732561049539,20.0,240.01,239.85,35.08451793]
[1732561049923,20.0,240.01,239.86,11.30763393]
[1732561050217,3.3551,240.05,239.87,23.776884]
[1732561051142,3.3551,240.05,239.88,11.30763393]
[1732561051524,30.0,240.0,239.89,23.776884]
[1732561052028,3.3551,240.05,239.89,23.776884]
[1732561053149,3.3551,240.05,239.92,23.776884]
[1732561054317,3.3551,240.05,239.92,35.08451793]
[1732561054527,3.3551,240.05,239.93,11.30763393]
[1732561055228,3.3551,240.05,239.94,23.776884]
[1732561055536,3.3551,240.05,239.95,11.30763393]
[1732561055738,3.3551,240.05,239.94,11.30763393]
[1732561057129,3.3551,240.11,239.97,11.30763393]
[1732561057328,20.0,240.09,239.96,11.30763393]
[1732561058336,20.0,240.09,239.95,20.0]
[1732561058551,20.0,240.09,239.91,19.02413393]
[1732561058758,20.0,240.09,239.93,20.0]
[1732561058921,20.0,240.09,239.94,23.776884]
[1732561059742,20.0,240.09,239.94,35.08451793]
[1732561060050,20.0,240.09,239.94,23.776884]
[1732561060555,20.0,240.09,239.96,11.30763393]
[1732561061824,3.3551,240.11,239.98,11.30763393]
[1732561062030,3.3551,240.11,240.0,35.08451793]
[1732561062328,3.3551,240.11,240.0,11.30763393]
[1732561062738,3.3551,240.11,240.01,35.08451793]
[1732561063055,3.3551,240.18,240.02,11.30763393]
[1732561064530,23.3551,240.18,240.02,11.30763393]
[1732561065454,23.3551,240.18,240.04,31.30763393]
[1732561066231,23.3551,240.18,240.04,20.0]
[1732561068346,23.3551,240.18,240.03,23.776884]
[1732561068943,23.3551,240.18,240.04,20.0]
[1732561070029,23.3551,240.18,239.98,11.30763393]
[1732561070255,20.0,240.14,239.97,23.776884]
[1732561070456,20.0,240.14,239.94,19.9603]
[1732561070659,20.0,240.14,239.94,31.26793393]
[1732561070856,20.0,240.14,239.96,11.30763393]
[1732561071153,20.0,240.14,239.97,11.30763393]
[1732561071343,20.0,240.14,239.98,11.30763393]
[1732561072155,20.0,240.14,239.99,23.776884]
[1732561073053,20.0,240.14,239.99,35.08451793]
[1732561073268,20.0,240.14,239.99,23.776884]
[1732561073765,20.0,240.14,240.0,20.0]
[1732561074659,20.0,240.14,239.97,35.08451793]
[1732561075245,20.0,240.14,239.95,23.776884]
[1732561076854,20.0,240.1,239.95,23.776884]
[1732561077041,4.7087,240.09,239.95,23.776884]
[1732561077458,4.7087,240.09,239.95,35.08451793]
[1732561078454,4.7087,240.09,239.94,19.9603]
[1732561078455,3.3767,240.08,239.94,23.776884]
[1732561078675,20.0,240.06,239.9,7.7971]
[1732561078850,20.0,240.06,239.89,11.30763393]
[1732561079177,20.0,240.06,239.91,11.30763393]
[1732561080055,20.0,240.06,239.92,23.776884]
[1732561081451,20.0,240.06,239.92,20.0]
[1732561081847,20.0,240.06,239.94,23.776884]
[1732561082157,20.0,240.06,239.93,31.30763393]
[1732561082556,20.0,240.06,239.92,11.30763393]
[1732561083071,20.0,240.06,239.92,23.776884]
[1732561083271,20.0,240.06,239.91,20.0]
[1732561083474,20.0,240.06,239.91,31.30763393]
[1732561083768,30.0,240.04,239.91,23.776884]
[1732561084173,30.0,240.04,239.89,35.08451793]
[1732561084347,30.0,240.04,239.88,31.50873393]
[1732561084547,20.0,240.01,239.86,11.30763393]
[1732561085157,4.7087,239.99,239.85,11.30763393]
[1732561085675,4.7087,239.99,239.86,23.776884]
[1732561085977,4.7087,239.99,239.84,11.30763393]
[1732561086171,20.0,239.97,239.81,11.30763393]
[1732561087247,20.0,239.97,239.8,11.30763393]
[1732561087951,20.0,239.97,239.81,20.0]
[1732561088152,20.0,239.93,239.78,39.11414144]
[1732561088480,20.0,239.93,239.68,78.31900619]
[1732561088481,20.0,239.89,239.77,39.11414144]
[1732561088771,23.3767,239.88,239.77,39.11414144]
[1732561089148,23.3767,239.88,239.76,39.11414144]
[1732561090171,3.3767,239.88,239.79,11.30763393]
[1732561090681,23.3767,239.88,239.76,39.11414144]
[1732561092872,23.3767,239.88,239.75,50.42177537]
[1732561093076,23.3767,239.88,239.76,74.19865937]
[1732561093555,23.3767,239.88,239.76,62.89102544]
[1732561094278,23.3767,239.88,239.76,23.776884]
[1732561095078,20.0,239.87,239.75,39.11414144]
[1732561095285,20.0,239.83,239.74,39.11414144]
[1732561095777,3.3767,239.82,239.74,39.11414144]
[1732561096163,3.3767,239.82,239.71,52.15218859]
[1732561096368,30.0,239.81,239.71,52.15218859]
[1732561096670,30.0,239.81,239.7,8.05440325]
[1732561097052,20.0,239.78,239.7,8.05440325]
[1732561097253,4.6775,239.77,239.7,8.05440325]
[1732561099664,30.0,239.81,239.71,23.776884]
[1732561099877,3.3767,239.82,239.73,11.30763393]
[1732561100264,4.6775,239.85,239.74,35.08451793]
[1732561100861,4.6775,239.85,239.75,11.30763393]
[1732561101072,3.2987,239.88,239.77,31.30763393]
[1732561101267,3.2987,239.88,239.78,35.08451793]
[1732561101469,4.6775,239.91,239.81,11.30763393]
[1732561101665,3.2987,239.94,239.84,23.776884]
[1732561102092,3.2987,239.94,239.84,35.08451793]
[1732561102592,4.6775,239.97,239.89,20.0]
[1732561102889,3.2987,240.0,239.88,23.776884]
[1732561104006,23.2987,240.0,239.86,43.776884]
[1732561104364,23.2987,240.0,239.86,20.0]
[1732561104769,23.2987,240.0,239.87,0.12549]
[1732561104989,3.2987,240.0,239.87,35.21000793]
[1732561105196,3.2987,240.0,239.87,23.902374]
[1732561105696,3.2987,240.0,239.88,11.30763393]
[1732561105892,3.2987,240.0,239.89,23.776884]
[1732561106070,3.2987,240.0,239.91,23.776884]
[1732561106273,4.6775,240.03,239.91,11.30763393]
[1732561106579,4.6775,240.03,239.9,20.0]
[1732561106776,4.6775,240.03,239.9,23.776884]
[1732561107295,4.6775,240.03,239.9,20.0]
[1732561107500,24.6775,240.03,239.9,20.0]
[1732561108095,24.6775,240.03,239.91,23.776884]
[1732561108499,24.6775,240.03,239.93,11.30763393]
[1732561108669,24.6775,240.03,239.92,11.30763393]
[1732561109075,3.2987,240.06,239.92,11.30763393]
[1732561109270,3.2987,240.06,239.95,11.30763393]
[1732561109500,3.2987,240.06,239.95,23.776884]
[1732561109798,4.6775,240.08,239.96,11.30763393]
[1732561110401,4.6775,240.08,239.97,11.30763393]
[1732561110699,3.2987,240.12,239.99,11.30763393]
[1732561111281,3.2987,240.12,239.98,35.08451793]
[1732561111692,3.2987,240.12,239.94,31.30763393]
[1732561111890,3.2987,240.12,239.95,23.776884]
[1732561112284,8.37909468,240.12,239.95,23.776884]
[1732561112682,20.0,240.09,239.95,23.776884]
[1732561112882,20.0,240.11,239.95,23.776884]
[1732561113601,20.0,240.11,239.96,11.30763393]
[1732561113979,3.2987,240.12,239.99,11.30763393]
[1732561114702,3.2987,240.12,240.0,11.30763393]
[1732561115676,3.2987,240.12,240.01,23.776884]
[1732561115880,3.2987,240.12,240.01,20.0]
[1732561116480,3.2987,240.12,240.01,23.776884]
[1732561117681,20.0,240.11,239.96,23.776884]
[1732561117915,20.0,240.11,239.92,11.30763393]
[1732561118283,20.0,240.11,239.93,11.30763393]
[1732561118982,23.776884,240.1,239.89,11.30763393]
[1732561119191,20.0,240.07,239.88,19.69903393]
[1732561119986,20.0,240.07,239.9,11.30763393]
[1732561120184,20.0,240.07,239.91,11.30763393]
[1732561120594,20.0,240.08,239.93,11.30763393]
[1732561120890,20.0,240.09,239.94,23.776884]
[1732561121203,20.0,240.11,239.94,23.776884]
[1732561121403,20.0,240.11,239.94,35.08451793]
[1732561121793,20.0,240.09,239.94,35.08451793]
[1732561123507,20.0,240.09,239.94,23.776884]
[1732561123705,20.0,240.09,239.9,11.30763393]
[1732561124017,20.0,240.09,239.91,23.776884]
[1732561124320,20.0,240.09,239.91,35.08451793]
[1732561125410,10.0,240.04,239.92,11.30763393]
[1732561125717,10.0,240.04,239.93,11.30763393]
[1732561125915,10.0,240.04,239.94,0.12549]
[1732561126097,10.0,240.03,239.93,11.30763393]
[1732561126687,10.0,240.04,239.93,11.30763393]
[1732561126888,20.0,240.09,239.78,23.776884]
[1732561126889,10.0,240.0,239.82,0.12549]
[1732561127132,31.1757,240.01,239.91,11.30763393]
[1732561127293,10.0,240.0,239.89,11.30763393]
[1732561127606,10.0,240.0,239.88,11.30763393]
[1732561127797,10.0,239.98,239.88,11.30763393]
[1732561127992,10.0,239.98,239.86,11.30763393]
[1732561128186,10.0,239.98,239.85,11.30763393]
[1732561128387,10.0,239.97,239.85,11.30763393]
[1732561128817,10.0,239.97,239.84,11.30763393]
[1732561129005,10.0,239.95,239.82,11.30763393]
[1732561129198,10.0,239.95,239.83,11.30763393]
[1732561129613,10.0,239.93,239.83,11.30763393]
[1732561130011,10.0,239.93,239.81,20.3939]
[1732561130200,10.0,239.91,239.79,11.30763393]
[1732561130406,10.0,239.91,239.75,19.5061]
[1732561130407,10.0,239.87,239.76,11.30763393]
[1732561131015,10.0,239.87,239.77,11.30763393]
[1732561131216,10.0,239.9,239.77,11.30763393]
[1732561131217,10.0,239.89,239.77,11.30763393]
[1732561131396,10.0,239.89,239.78,11.30763393]
[1732561131722,10.0,239.9,239.78,11.30763393]
[1732561132516,10.0,239.87,239.77,11.30763393]
[1732561132717,10.0,239.86,239.76,11.30763393]
[1732561132923,10.0,239.86,239.75,30.81373393]
[1732561133122,10.0,239.85,239.75,11.30763393]
[1732561133600,10.0,239.85,239.76,11.30763393]
[1732561134011,10.0,239.86,239.76,11.30763393]
[1732561134213,10.0,239.88,239.78,11.30763393]
[1732561135202,20.9186,239.89,239.81,11.30763393]
[1732561135397,20.9186,239.89,239.79,11.30763393]
[1732561135608,30.9186,239.89,239.81,20.0]
[1732561135820,30.9186,239.89,239.78,11.30763393]
[1732561135821,10.0,239.87,239.78,11.30763393]
[1732561136115,10.0,239.86,239.76,11.30763393]
[1732561136302,10.0,239.86,239.79,11.30763393]
[1732561136614,10.0,239.87,239.7,23.902374]
[1732561136615,10.0,239.87,239.78,11.30763393]
[1732561137122,10.0,239.86,239.76,11.30763393]
[1732561137417,10.0,239.87,239.78,11.30763393]
[1732561137919,10.0,239.85,239.76,11.30763393]
[1732561138220,10.0,239.86,239.76,11.30763393]
[1732561138417,10.0,239.85,239.76,11.30763393]
[1732561138614,10.0,239.83,239.73,11.30763393]
[1732561138799,20.0,239.86,239.76,20.0]
[1732561139313,10.0,239.85,239.76,31.30763393]
[1732561140130,10.0,239.85,239.74,11.30763393]
[1732561140436,10.0,239.83,239.74,20.0]
[1732561140722,10.0,239.83,239.72,31.30763393]
[1732561141106,20.0,239.81,239.7,11.30763393]
[1732561141417,20.0,239.81,239.62,4.169]
[1732561141418,20.0,239.77,239.65,11.30763393]
[1732561142413,21.5138,239.78,239.68,11.30763393]
[1732561142620,21.5138,239.78,239.67,31.30763393]
[1732561142828,21.5138,239.78,239.72,11.30763393]
[1732561143008,8.218,239.8,239.71,11.30763393]
[1732561143202,8.218,239.8,239.7,11.30763393]
[1732561144611,8.218,239.8,239.71,11.30763393]
[1732561145624,20.269,239.83,239.74,11.30763393]
[1732561145804,20.269,239.83,239.73,11.30763393]
[1732561146010,10.0,239.82,239.72,11.30763393]
[1732561146515,30.269,239.83,239.73,11.30763393]
[1732561146906,20.269,239.83,239.73,11.30763393]
[1732561147227,30.269,239.83,239.73,11.30763393]
[1732561147425,20.269,239.83,239.73,11.30763393]
[1732561147631,20.269,239.83,239.75,11.30763393]
[1732561147934,17.9079,239.86,239.76,11.30763393]
[1732561148104,7.9079,239.86,239.76,11.30763393]
[1732561148307,30.6167,239.89,239.68,28.196864]
[1732561148308,10.0,239.88,239.79,11.30763393]
[1732561148627,30.6167,239.89,239.79,11.30763393]
[1732561148628,30.6167,239.89,239.79,20.0]
[1732561149916,10.0,239.88,239.79,20.0]
[1732561150227,10.0,239.87,239.75,11.30763393]
[1732561150423,10.0,239.87,239.76,11.30763393]
[1732561150611,10.0,239.87,239.79,20.0]
[1732561151027,20.6167,239.89,239.79,20.0]
[1732561151218,10.0,239.88,239.79,20.0]
[1732561151422,30.6167,239.89,239.77,11.30763393]
[1732561153134,20.6167,239.89,239.77,11.30763393]
[1732561153339,20.6167,239.89,239.8,20.0]
[1732561153829,10.0,239.93,239.84,20.0]
[1732561154014,20.4129,239.94,239.84,20.0]
[1732561154417,10.0,239.97,239.86,11.30763393]
[1732561154615,10.0,239.95,239.86,11.30763393]
[1732561154819,10.0,239.97,239.86,11.30763393]
[1732561155025,10.0,239.95,239.85,23.776884]
[1732561155212,10.0,239.95,239.84,11.43312393]
[1732561155213,20.0,239.95,239.84,11.30763393]
[1732561155412,20.0,239.95,239.83,20.0]
[1732561155820,20.0,239.95,239.85,20.0]
[1732561156034,20.0,239.95,239.83,31.30763393]
[1732561156435,10.0,239.96,239.84,23.902374]
[1732561156621,20.0,239.96,239.84,23.902374]
[1732561156812,10.0,239.94,239.84,23.902374]
[1732561157019,10.0,239.98,239.85,11.30763393]
[1732561157236,20.0,239.98,239.85,11.30763393]
[1732561159842,10.0,239.98,239.85,11.30763393]
[1732561160336,10.0,239.98,239.87,11.30763393]
[1732561160744,19.457,239.99,239.88,11.30763393]
[1732561160946,19.457,239.99,239.89,11.30763393]
[1732561161140,10.0,239.98,239.88,11.30763393]
[1732561162246,10.0,239.98,239.89,20.0]
[1732561162428,10.0,239.96,239.85,11.43312393]
[1732561162631,10.0,239.96,239.87,20.0]
[1732561162837,10.0,239.97,239.87,20.0]
[1732561163043,10.0,239.96,239.88,20.0]
[1732561164636,10.0,239.97,239.88,20.0]
[1732561165143,10.0,239.95,239.85,0.12549]
[1732561165326,10.0,239.95,239.87,20.0]
[1732561165733,10.0,239.97,239.87,20.0]
[1732561165939,10.0,239.95,239.87,20.0]
[1732561166750,10.0,239.97,239.87,20.0]
[1732561166921,10.0,239.95,239.87,20.0]
[1732561167121,10.0,239.97,239.87,20.0]
[1732561167431,10.0,239.95,239.87,20.0]
[1732561168355,10.0,239.98,239.87,31.30763393]
[1732561168646,10.0,240.0,239.9,11.30763393]
[1732561168957,10.0,239.97,239.87,20.0]
[1732561169243,10.0,239.97,239.88,20.0]
[1732561169441,10.0,239.97,239.89,20.0]
[1732561169946,20.0,239.97,239.89,20.0]
[1732561170645,20.0,239.97,239.87,20.0]
[1732561170849,20.0,239.97,239.89,20.0]
[1732561171555,10.0,240.0,239.89,11.30763393]
[1732561171870,10.0,240.0,239.89,20.0]
[1732561172043,10.0,240.0,239.89,11.30763393]
[1732561172349,20.0,240.02,239.89,11.30763393]
[1732561172521,10.0,240.0,239.9,35.21000793]
[1732561172724,10.0,240.0,239.9,57.62670793]
[1732561173038,10.0,240.02,239.91,11.30763393]
[1732561173531,10.0,240.02,239.92,11.30763393]
[1732561173733,10.0,240.04,239.93,11.30763393]
[1732561173941,20.0,240.07,239.96,11.30763393]
[1732561175055,10.0,240.04,239.95,11.30763393]
[1732561175341,10.0,240.04,239.96,20.0]
[1732561175647,10.0,240.05,239.96,20.0]
[1732561175852,10.0,240.04,239.96,20.0]
[1732561176351,10.0,240.04,239.95,20.0]
[1732561176741,10.0,240.05,239.95,20.0]
[1732561177658,10.0,240.06,239.95,11.30763393]
[1732561177951,10.0,240.07,239.96,11.30763393]
[1732561179372,10.0,240.07,239.98,31.30763393]
[1732561181246,10.0,240.07,239.98,20.0]
[1732561181831,10.0,240.07,239.99,20.0]
[1732561182056,10.0,240.07,239.98,20.0]
[1732561182235,10.0,240.07,239.99,11.30763393]
[1732561182740,20.0,240.09,239.99,11.30763393]
[1732561183229,20.0,240.09,239.98,31.30763393]
[1732561183430,10.0,240.08,239.98,31.30763393]
[1732561184744,10.0,240.09,239.98,31.30763393]
[1732561184953,10.0,240.08,239.98,31.30763393]
[1732561185849,10.0,240.08,240.0,20.0]
[1732561186451,10.0,240.08,239.96,11.30763393]
[1732561186761,20.0,240.04,239.92,11.30763393]
[1732561187454,29.4238,240.11,239.9,22.4167]
[1732561187455,10.0,240.01,239.9,22.4167]
[1732561188038,10.0,240.02,239.91,11.30763393]
[1732561188259,10.0,240.01,239.9,33.72433393]
[1732561189342,10.0,240.01,239.93,20.0]
[1732561190949,10.0,240.01,239.9,33.72433393]
[1732561191139,10.0,240.01,239.93,20.0]
[1732561191847,30.0,239.99,239.93,20.0]
[1732561198767,30.0,239.99,239.95,11.30763393]
[1732561199142,30.0,239.99,239.94,0.12549]
[1732561199143,30.0,239.99,239.97,11.30763393]
[1732561199558,10.0,240.07,239.98,11.30763393]
[1732561200360,10.0,240.07,240.0,11.30763393]
[1732561200557,10.0,240.07,239.97,20.0]
[1732561200741,10.0,240.1,239.94,23.776884]
[1732561200742,20.0,240.05,239.94,35.08451793]
[1732561200942,10.0,240.03,239.93,20.0]
[1732561201155,20.0,240.01,239.9,33.72433393]
[1732561201349,10.0,239.99,239.85,21.0745]
[1732561201560,10.0,240.01,239.85,21.0745]
[1732561201561,10.0,239.96,239.85,21.0745]
[1732561201894,10.0,239.89,239.79,21.0745]
[1732561202066,10.0,239.87,239.8,0.95317526]
[1732561202240,30.0,240.0,239.8,0.95317526]
[1732561202241,10.0,239.83,239.8,0.95317526]
[1732561202439,20.0,239.83,239.8,0.95317526]
[1732561202643,28.9834,239.89,239.8,0.95317526]
[1732561202644,38.9834,239.89,239.8,0.95317526]
[1732561202840,10.0,239.91,239.81,11.30763393]
[1732561203054,10.0,239.91,239.82,12.2607297]
[1732561203264,10.0,239.94,239.83,12.26068996]
[1732561203477,28.9834,239.95,239.86,11.30763393]
[1732561203654,38.9834,239.95,239.85,11.30763393]
[1732561203851,38.9834,239.95,239.84,11.43312393]
[1732561204055,38.9834,239.95,239.84,11.30763393]
[1732561204260,10.0,239.93,239.83,12.26068996]
[1732561205162,10.0,239.89,239.83,0.95305603]
[1732561205668,10.0,239.87,239.83,0.95305603]
[1732561205850,20.0,239.85,239.74,11.30763393]
[1732561206181,20.0,239.85,239.74,12.26104774]
[1732561206647,30.0,239.84,239.74,12.26104774]
[1732561206850,30.0,239.84,239.76,11.30763393]
[1732561207270,30.0,239.84,239.77,11.30763393]
[1732561207471,30.0,239.84,239.76,11.30763393]
[1732561207657,20.0,239.85,239.75,31.30763393]
[1732561207856,10.0,239.85,239.76,11.30763393]
[1732561208177,10.0,239.81,239.72,22.4014]
[1732561208477,10.0,239.81,239.7,11.30763393]
[1732561208478,10.0,239.78,239.68,11.30763393]
[1732561208646,10.0,239.79,239.68,11.30763393]
[1732561208845,10.0,239.8,239.7,11.30763393]
[1732561209077,10.0,239.8,239.71,11.30763393]
[1732561209258,20.0,239.83,239.73,11.30763393]
[1732561209451,10.0,239.86,239.76,11.30763393]
[1732561209651,10.0,239.86,239.77,11.30763393]
[1732561209981,10.0,239.83,239.76,11.30763393]
[1732561210272,10.0,239.83,239.73,11.30763393]
[1732561210469,10.0,239.79,239.69,11.30763393]
[1732561210774,10.0,239.79,239.67,22.0725]
[1732561210775,10.0,239.77,239.67,33.38013393]
[1732561210949,10.0,239.77,239.67,22.0725]
[1732561211375,10.0,239.79,239.71,11.30763393]
[1732561211569,10.0,239.81,239.72,11.30763393]
[1732561211949,10.0,239.79,239.68,11.43312393]
[1732561212149,10.0,239.78,239.68,11.43312393]
[1732561212773,10.0,239.79,239.68,11.43312393]
[1732561212972,10.0,239.78,239.68,11.43312393]
[1732561213271,30.0,239.76,239.68,11.43312393]
[1732561213472,30.0,239.76,239.7,20.0]
[1732561213868,30.0,239.76,239.7,31.30763393]
[1732561214171,10.0,239.8,239.72,11.30763393]
[1732561214370,10.0,239.79,239.7,31.30763393]
[1732561214756,10.0,239.78,239.7,20.0]
[1732561215178,10.0,239.77,239.67,11.30763393]
[1732561215477,30.0,239.75,239.69,20.0]
[1732561215864,40.0,239.75,239.66,11.30763393]
[1732561216051,30.0,239.75,239.69,11.30763393]
[1732561216456,40.0,239.75,239.67,11.30763393]
[1732561216913,30.0,239.75,239.69,11.30763393]
[1732561217261,30.0,239.75,239.67,11.30763393]
[1732561218774,30.0,239.75,239.69,11.30763393]
[1732561219365,10.0,239.78,239.69,11.30763393]
[1732561219571,10.0,239.77,239.69,11.30763393]
[1732561219884,10.0,239.76,239.69,11.30763393]
[1732561220063,10.0,239.76,239.67,11.30763393]
[1732561220466,30.0,239.74,239.67,11.30763393]
[1732561220657,10.0,239.73,239.58,21.436]
[1732561220860,10.0,239.73,239.62,11.30763393]
[1732561221087,20.0,239.73,239.63,11.30763393]
[1732561221262,10.0,239.7,239.63,11.30763393]
[1732561221468,20.0,239.73,239.63,11.30763393]
[1732561221685,10.0,239.71,239.63,11.30763393]
[1732561221898,10.0,239.73,239.64,11.30763393]
[1732561222177,30.0,239.69,239.64,11.30763393]
[1732561222583,30.0,239.69,239.65,11.30763393]
[1732561222773,30.0,239.69,239.68,11.30763393]
[1732561223169,10.0,239.79,239.69,0.12549]